[Event "January 2 Late 2024"]
[Site "https://www.chess.com"]
[Date "2024.01.02"]
[Round "5"]
[White "Gulamali, Kazim"]
[Black "Aarav Dengla"]
[Result "1-0"]
[Board "92"]
[TimeControl "180+1"]
[WhiteFideId "2024764"]
[BlackFideId "45059756"]
[WhiteElo "2493"]
[BlackElo "2671"]
[WhiteTeam "USA"]
[BlackTeam "IND"]
[WhiteClock "0:00:59"]
[BlackClock "0:00:03"]

1. e4 {[%clk 0:02:56]}  c5 {[%clk 0:02:53]} 2. d4 {[%clk 0:02:56]}  cxd4 {[%clk 0:02:50]} 3. Nf3 {[%clk 0:02:56]}  d6 {[%clk 0:02:49]} 4. Nxd4 {[%clk 0:02:56]}  Nf6 {[%clk 0:02:49]} 5. Nc3 {[%clk 0:02:57]}  a6 {[%clk 0:02:48]} 6. Be3 {[%clk 0:02:57]}  e5 {[%clk 0:02:47]} 7. Nb3 {[%clk 0:02:57]}  Be7 {[%clk 0:02:48]} 8. f3 {[%clk 0:02:57]}  Be6 {[%clk 0:02:48]} 9. Qd2 {[%clk 0:02:58]}  Nbd7 {[%clk 0:02:49]} 10. Nd5 {[%clk 0:02:45]}  Nxd5 {[%clk 0:02:48]} 11. exd5 {[%clk 0:02:46]}  Bf5 {[%clk 0:02:48]} 12. Na5 {[%clk 0:02:42]}  Qc7 {[%clk 0:02:47]} 13. c4 {[%clk 0:02:42]}  O-O {[%clk 0:02:47]} 14. Be2 {[%clk 0:02:37]}  Bg6 {[%clk 0:02:46]} 15. O-O {[%clk 0:02:33]}  f5 {[%clk 0:02:47]} 16. b4 {[%clk 0:02:31]}  Bf6 {[%clk 0:02:45]} 17. Rac1 {[%clk 0:02:31]}  f4 {[%clk 0:02:30]} 18. Bf2 {[%clk 0:02:31]}  e4 {[%clk 0:02:31]} 19. Bd4 {[%clk 0:02:31]}  e3 {[%clk 0:02:30]} 20. Qb2 {[%clk 0:02:31]}  Ne5 {[%clk 0:02:30]} 21. Rfd1 {[%clk 0:02:28]}  Rac8 {[%clk 0:02:28]} 22. c5 {[%clk 0:02:07]}  dxc5 {[%clk 0:02:26]} 23. Rxc5 {[%clk 0:02:08]}  Qe7 {[%clk 0:02:02]} 24. d6 {[%clk 0:02:05]}  Qxd6 {[%clk 0:01:51]} 25. Bxe5 {[%clk 0:02:02]}  Rxc5 {[%clk 0:01:28]} 26. Bxf6 {[%clk 0:01:52]}  Qxf6 {[%clk 0:00:29]} 27. Qxf6 {[%clk 0:01:49]}  Rxf6 {[%clk 0:00:30]} 28. bxc5 {[%clk 0:01:43]}  b6 {[%clk 0:00:30]} 29. Rd6 {[%clk 0:01:13]}  Rf5 {[%clk 0:00:05]} 30. cxb6 {[%clk 0:01:07]}  Rc5 {[%clk 0:00:03]} 31. Bc4+ {[%clk 0:00:59]} 1-0

[Event "January 2 Late 2024"]
[Site "https://www.chess.com"]
[Date "2024.01.02"]
[Round "5"]
[White "Gutierrez Olivares, Daniel"]
[Black "Zhu, Jiner"]
[Result "0-1"]
[Board "93"]
[TimeControl "180+1"]
[WhiteFideId "2264005"]
[BlackFideId "8608059"]
[WhiteElo "2492"]
[BlackElo "2668"]
[WhiteTeam "ESP"]
[BlackTeam "CHN"]
[WhiteClock "0:00:12"]
[BlackClock "0:01:23"]

1. Nf3 {[%clk 0:03:00]}  Nf6 {[%clk 0:02:59]} 2. c4 {[%clk 0:03:01]}  g6 {[%clk 0:03:00]} 3. g3 {[%clk 0:03:01]}  Bg7 {[%clk 0:03:01]} 4. Bg2 {[%clk 0:03:02]}  d6 {[%clk 0:03:02]} 5. O-O {[%clk 0:03:02]}  O-O {[%clk 0:03:03]} 6. b3 {[%clk 0:03:03]}  e5 {[%clk 0:03:03]} 7. Bb2 {[%clk 0:03:03]}  Nbd7 {[%clk 0:03:03]} 8. Nc3 {[%clk 0:03:03]}  Qe7 {[%clk 0:03:03]} 9. Rc1 {[%clk 0:03:00]}  c6 {[%clk 0:03:02]} 10. d3 {[%clk 0:02:55]}  Re8 {[%clk 0:03:02]} 11. Nd2 {[%clk 0:02:50]}  Nf8 {[%clk 0:03:02]} 12. b4 {[%clk 0:02:49]}  Ne6 {[%clk 0:02:58]} 13. b5 {[%clk 0:02:40]}  Bd7 {[%clk 0:02:58]} 14. a4 {[%clk 0:02:35]}  Nc5 {[%clk 0:02:57]} 15. Nb3 {[%clk 0:02:30]}  Rac8 {[%clk 0:02:48]} 16. Na5 {[%clk 0:02:22]}  Rc7 {[%clk 0:02:42]} 17. Ba3 {[%clk 0:02:19]}  h5 {[%clk 0:02:39]} 18. bxc6 {[%clk 0:02:12]}  bxc6 {[%clk 0:02:38]} 19. Bxc5 {[%clk 0:02:08]}  dxc5 {[%clk 0:02:39]} 20. Rb1 {[%clk 0:02:07]}  h4 {[%clk 0:02:37]} 21. Qd2 {[%clk 0:01:56]}  Ng4 {[%clk 0:02:36]} 22. Qa2 {[%clk 0:01:16]}  hxg3 {[%clk 0:02:30]} 23. hxg3 {[%clk 0:01:15]}  Qg5 {[%clk 0:02:26]} 24. Ne4 {[%clk 0:01:03]}  Qh5 {[%clk 0:02:25]} 25. Rfd1 {[%clk 0:01:01]}  Bf8 {[%clk 0:02:23]} 26. Rb7 {[%clk 0:00:58]}  Rec8 {[%clk 0:02:13]} 27. Rxc7 {[%clk 0:00:57]}  Rxc7 {[%clk 0:02:14]} 28. Qb2 {[%clk 0:00:48]}  f5 {[%clk 0:02:13]} 29. Qb8 {[%clk 0:00:44]}  Rc8 {[%clk 0:02:05]} 30. Qxa7 {[%clk 0:00:41]}  fxe4 {[%clk 0:01:44]} 31. Qxd7 {[%clk 0:00:40]}  Ra8 {[%clk 0:01:44]} 32. Nxc6 {[%clk 0:00:32]}  e3 {[%clk 0:01:44]} 33. Qe6+ {[%clk 0:00:21]}  Kh8 {[%clk 0:01:41]} 34. Nxe5 {[%clk 0:00:21]}  exf2+ {[%clk 0:01:36]} 35. Kf1 {[%clk 0:00:19]}  Nxe5 {[%clk 0:01:24]} 36. Bxa8 {[%clk 0:00:16]}  Ng4 {[%clk 0:01:23]} 37. Bg2 {[%clk 0:00:13]}  Qh2 {[%clk 0:01:23]} 38. Rb1 {[%clk 0:00:12]}  Qg1# {[%clk 0:01:23]} 0-1

[Event "January 2 Late 2024"]
[Site "https://www.chess.com"]
[Date "2024.01.02"]
[Round "5"]
[White "Fantinel, Thibault"]
[Black "Suvorov, Luca"]
[Result "1-0"]
[Board "94"]
[TimeControl "180+1"]
[WhiteFideId "663395"]
[BlackFideId "12977071"]
[WhiteElo "2662"]
[BlackElo "2492"]
[WhiteTeam "FRA"]
[BlackTeam "GER"]
[WhiteClock "0:00:11"]
[BlackClock "0:00:00"]

1. e4 {[%clk 0:02:20]}  d6 {[%clk 0:02:54]} 2. d4 {[%clk 0:02:19]}  Nf6 {[%clk 0:02:54]} 3. Nc3 {[%clk 0:02:19]}  Nbd7 {[%clk 0:02:53]} 4. g3 {[%clk 0:02:06]}  e5 {[%clk 0:02:51]} 5. Nge2 {[%clk 0:02:06]}  h5 {[%clk 0:02:43]} 6. h3 {[%clk 0:02:06]}  Be7 {[%clk 0:02:42]} 7. Bg2 {[%clk 0:02:06]}  c6 {[%clk 0:02:30]} 8. a4 {[%clk 0:02:05]}  Qc7 {[%clk 0:02:24]} 9. O-O {[%clk 0:02:01]}  b6 {[%clk 0:01:50]} 10. Be3 {[%clk 0:01:55]}  a5 {[%clk 0:01:42]} 11. f4 {[%clk 0:01:55]}  Ba6 {[%clk 0:01:42]} 12. Rf2 {[%clk 0:01:53]}  O-O-O {[%clk 0:01:35]} 13. Qd2 {[%clk 0:01:39]}  Kb7 {[%clk 0:01:34]} 14. Nc1 {[%clk 0:01:19]}  c5 {[%clk 0:00:59]} 15. d5 {[%clk 0:00:58]}  h4 {[%clk 0:00:55]} 16. g4 {[%clk 0:00:50]}  exf4 {[%clk 0:00:55]} 17. Bxf4 {[%clk 0:00:51]}  Nh7 {[%clk 0:00:52]} 18. Nd3 {[%clk 0:00:49]}  f6 {[%clk 0:00:43]} 19. b3 {[%clk 0:00:47]}  Ne5 {[%clk 0:00:41]} 20. Nb2 {[%clk 0:00:44]}  Nf8 {[%clk 0:00:32]} 21. Bf1 {[%clk 0:00:44]}  Bxf1 {[%clk 0:00:27]} 22. Raxf1 {[%clk 0:00:42]}  Nfg6 {[%clk 0:00:22]} 23. Nb5 {[%clk 0:00:42]}  Qd7 {[%clk 0:00:22]} 24. Na3 {[%clk 0:00:40]}  Rde8 {[%clk 0:00:20]} 25. Nbc4 {[%clk 0:00:40]}  Bd8 {[%clk 0:00:20]} 26. Bxe5 {[%clk 0:00:38]}  Nxe5 {[%clk 0:00:20]} 27. Nxe5 {[%clk 0:00:29]}  Rxe5 {[%clk 0:00:21]} 28. Qd3 {[%clk 0:00:28]}  Rhe8 {[%clk 0:00:20]} 29. Re2 {[%clk 0:00:23]}  Bc7 {[%clk 0:00:16]} 30. Nc4 {[%clk 0:00:22]}  Rg5 {[%clk 0:00:15]} 31. Kh1 {[%clk 0:00:21]}  Qf7 {[%clk 0:00:15]} 32. Qf3 {[%clk 0:00:19]}  Qg6 {[%clk 0:00:13]} 33. Rfe1 {[%clk 0:00:18]}  Qh7 {[%clk 0:00:11]} 34. Qf4 {[%clk 0:00:19]}  Rg6 {[%clk 0:00:09]} 35. Re3 {[%clk 0:00:15]}  Rd8 {[%clk 0:00:08]} 36. c3 {[%clk 0:00:15]}  Rh6 {[%clk 0:00:07]} 37. Na3 {[%clk 0:00:12]}  Qg8 {[%clk 0:00:06]} 38. Nc4 {[%clk 0:00:12]}  Qe8 {[%clk 0:00:05]} 39. Rb1 {[%clk 0:00:12]}  Ka7 {[%clk 0:00:04]} 40. Na3 {[%clk 0:00:12]}  Qe5 {[%clk 0:00:03]} 41. Qxe5 {[%clk 0:00:12]}  dxe5 {[%clk 0:00:01]} 42. Rf3 {[%clk 0:00:11]}  Rhh8 {[%clk 0:00:01]} 43. Rbf1 {[%clk 0:00:10]}  Kb7 {[%clk 0:00:00]} 44. Rf5 {[%clk 0:00:11]} 1-0

[Event "January 2 Late 2024"]
[Site "https://www.chess.com"]
[Date "2024.01.02"]
[Round "5"]
[White "Olsson, Linus"]
[Black "Palomo, Franklin Annervys"]
[Result "0-1"]
[Board "95"]
[TimeControl "180+1"]
[WhiteFideId "1706098"]
[BlackFideId "3906965"]
[WhiteElo "2485"]
[BlackElo "2658"]
[WhiteTeam "SWE"]
[BlackTeam "VEN"]
[WhiteClock "0:00:05"]
[BlackClock "0:00:32"]

1. d4 {[%clk 0:03:00]}  Nf6 {[%clk 0:02:59]} 2. c4 {[%clk 0:03:00]}  e6 {[%clk 0:02:59]} 3. g3 {[%clk 0:02:59]}  c5 {[%clk 0:02:56]} 4. d5 {[%clk 0:02:58]}  exd5 {[%clk 0:02:56]} 5. cxd5 {[%clk 0:02:59]}  d6 {[%clk 0:02:57]} 6. Nc3 {[%clk 0:02:58]}  Be7 {[%clk 0:02:58]} 7. Bg2 {[%clk 0:02:57]}  O-O {[%clk 0:02:59]} 8. Nf3 {[%clk 0:02:57]}  a6 {[%clk 0:02:59]} 9. a4 {[%clk 0:02:57]}  Nbd7 {[%clk 0:03:00]} 10. O-O {[%clk 0:02:57]}  Re8 {[%clk 0:03:00]} 11. h3 {[%clk 0:02:57]}  Bf8 {[%clk 0:03:01]} 12. Nd2 {[%clk 0:02:57]}  Ne5 {[%clk 0:02:47]} 13. f4 {[%clk 0:02:51]}  Ng6 {[%clk 0:02:47]} 14. e4 {[%clk 0:02:49]}  Rb8 {[%clk 0:02:41]} 15. a5 {[%clk 0:02:45]}  b5 {[%clk 0:02:33]} 16. axb6 {[%clk 0:02:46]}  Rxb6 {[%clk 0:02:33]} 17. Nc4 {[%clk 0:02:35]}  Rb4 {[%clk 0:02:34]} 18. Qd3 {[%clk 0:02:23]}  Nd7 {[%clk 0:02:23]} 19. Na5 {[%clk 0:02:15]}  Qb6 {[%clk 0:02:03]} 20. Kh2 {[%clk 0:01:58]}  Nf6 {[%clk 0:01:33]} 21. Nc6 {[%clk 0:01:51]}  Rb3 {[%clk 0:01:34]} 22. Qc4 {[%clk 0:01:43]}  Bb7 {[%clk 0:01:25]} 23. e5 {[%clk 0:01:27]}  dxe5 {[%clk 0:01:19]} 24. f5 {[%clk 0:01:28]}  Ne7 {[%clk 0:01:16]} 25. Nxe5 {[%clk 0:01:09]}  Nc8 {[%clk 0:01:04]} 26. Nxf7 {[%clk 0:01:05]}  Rb4 {[%clk 0:00:55]} 27. Qa2 {[%clk 0:00:44]}  Kxf7 {[%clk 0:00:55]} 28. d6+ {[%clk 0:00:43]}  c4 {[%clk 0:00:55]} 29. Bxb7 {[%clk 0:00:41]}  Qxb7 {[%clk 0:00:54]} 30. Rf2 {[%clk 0:00:36]}  Nxd6 {[%clk 0:00:54]} 31. Bg5 {[%clk 0:00:32]}  Nde4 {[%clk 0:00:54]} 32. Be3 {[%clk 0:00:22]}  Nxf2 {[%clk 0:00:37]} 33. Bxf2 {[%clk 0:00:23]}  Rxb2 {[%clk 0:00:34]} 34. Qxc4+ {[%clk 0:00:22]}  Ke7 {[%clk 0:00:34]} 35. Qe6+ {[%clk 0:00:10]}  Kd8 {[%clk 0:00:32]} 36. Rd1+ {[%clk 0:00:10]}  Nd7 {[%clk 0:00:33]} 37. Qc4 {[%clk 0:00:05]}  Rxf2+ {[%clk 0:00:31]} 38. Kg1 {[%clk 0:00:05]}  Qg2# {[%clk 0:00:32]} 0-1

[Event "January 2 Late 2024"]
[Site "https://www.chess.com"]
[Date "2024.01.02"]
[Round "5"]
[White "Huang, Youhe"]
[Black "Aghasiyev, Kamal"]
[Result "1-0"]
[Board "98"]
[TimeControl "180+1"]
[WhiteFideId "2629445"]
[BlackFideId "13402854"]
[WhiteElo "2482"]
[BlackElo "2645"]
[WhiteTeam "CAN"]
[BlackTeam "AZE"]
[WhiteClock "0:00:03"]
[BlackClock "0:00:20"]

1. e4 {[%clk 0:03:00]}  c5 {[%clk 0:02:55]} 2. Nf3 {[%clk 0:03:00]}  d6 {[%clk 0:02:54]} 3. Nc3 {[%clk 0:03:00]}  Nf6 {[%clk 0:02:51]} 4. e5 {[%clk 0:03:00]}  dxe5 {[%clk 0:02:51]} 5. Nxe5 {[%clk 0:03:01]}  Nbd7 {[%clk 0:02:51]} 6. Qe2 {[%clk 0:03:01]}  e6 {[%clk 0:02:50]} 7. g3 {[%clk 0:03:01]}  Nxe5 {[%clk 0:02:49]} 8. Qxe5 {[%clk 0:03:02]}  Bd6 {[%clk 0:02:48]} 9. Qg5 {[%clk 0:03:03]}  O-O {[%clk 0:02:45]} 10. Bg2 {[%clk 0:03:00]}  a6 {[%clk 0:02:45]} 11. d3 {[%clk 0:02:59]}  Qc7 {[%clk 0:02:44]} 12. O-O {[%clk 0:02:45]}  Bd7 {[%clk 0:02:42]} 13. Ne4 {[%clk 0:02:38]}  Nxe4 {[%clk 0:02:31]} 14. dxe4 {[%clk 0:02:39]}  Bc6 {[%clk 0:02:29]} 15. Be3 {[%clk 0:02:37]}  b6 {[%clk 0:02:13]} 16. Rad1 {[%clk 0:02:36]}  Rad8 {[%clk 0:02:13]} 17. Qh4 {[%clk 0:02:32]}  Be7 {[%clk 0:02:05]} 18. Qg4 {[%clk 0:02:28]}  f5 {[%clk 0:02:01]} 19. Qh3 {[%clk 0:02:12]}  Qb7 {[%clk 0:01:57]} 20. exf5 {[%clk 0:02:04]}  Rxd1 {[%clk 0:01:51]} 21. Rxd1 {[%clk 0:02:03]}  exf5 {[%clk 0:01:51]} 22. Bxc6 {[%clk 0:01:57]}  Qxc6 {[%clk 0:01:51]} 23. Qg2 {[%clk 0:01:57]}  Qxg2+ {[%clk 0:01:50]} 24. Kxg2 {[%clk 0:01:58]}  Rd8 {[%clk 0:01:51]} 25. Rxd8+ {[%clk 0:01:57]}  Bxd8 {[%clk 0:01:51]} 26. c4 {[%clk 0:01:51]}  Kf7 {[%clk 0:01:49]} 27. a4 {[%clk 0:01:48]}  a5 {[%clk 0:01:42]} 28. Kf3 {[%clk 0:01:48]}  g5 {[%clk 0:01:42]} 29. g4 {[%clk 0:01:40]}  Ke6 {[%clk 0:01:40]} 30. Kg3 {[%clk 0:01:41]}  f4+ {[%clk 0:01:40]} 31. Bxf4 {[%clk 0:01:33]}  gxf4+ {[%clk 0:01:40]} 32. Kxf4 {[%clk 0:01:34]}  Bh4 {[%clk 0:01:35]} 33. f3 {[%clk 0:01:18]}  Bf6 {[%clk 0:01:27]} 34. b3 {[%clk 0:01:17]}  h6 {[%clk 0:01:14]} 35. Ke4 {[%clk 0:01:14]}  Bd4 {[%clk 0:01:01]} 36. f4 {[%clk 0:00:58]}  Bg1 {[%clk 0:00:56]} 37. h4 {[%clk 0:00:37]}  Bh2 {[%clk 0:00:55]} 38. g5 {[%clk 0:00:13]}  hxg5 {[%clk 0:00:49]} 39. fxg5 {[%clk 0:00:11]}  Bg1 {[%clk 0:00:47]} 40. h5 {[%clk 0:00:03]}  Bd4 {[%clk 0:00:47]} 41. h6 {[%clk 0:00:02]}  Kf7 {[%clk 0:00:47]} 42. Kf5 {[%clk 0:00:03]}  Be3 {[%clk 0:00:44]} 43. g6+ {[%clk 0:00:02]}  Kg8 {[%clk 0:00:44]} 44. h7+ {[%clk 0:00:03]}  Kg7 {[%clk 0:00:44]} 45. Ke6 {[%clk 0:00:03]}  Bd4 {[%clk 0:00:44]} 46. Kd5 {[%clk 0:00:04]}  Kxg6 {[%clk 0:00:44]} 47. Kc6 {[%clk 0:00:05]}  Kxh7 {[%clk 0:00:39]} 48. Kxb6 {[%clk 0:00:06]}  Kg6 {[%clk 0:00:38]} 49. Kxa5 {[%clk 0:00:06]}  Kf5 {[%clk 0:00:39]} 50. Kb5 {[%clk 0:00:07]}  Ke6 {[%clk 0:00:36]} 51. Kc6 {[%clk 0:00:07]}  Bc3 {[%clk 0:00:34]} 52. Kxc5 {[%clk 0:00:07]}  Kd7 {[%clk 0:00:35]} 53. b4 {[%clk 0:00:08]}  Kc7 {[%clk 0:00:35]} 54. a5 {[%clk 0:00:08]}  Kb7 {[%clk 0:00:35]} 55. Kb5 {[%clk 0:00:09]}  Ka7 {[%clk 0:00:34]} 56. c5 {[%clk 0:00:09]}  Be1 {[%clk 0:00:35]} 57. c6 {[%clk 0:00:03]}  Bd2 {[%clk 0:00:34]} 58. Kc5 {[%clk 0:00:03]}  Be1 {[%clk 0:00:33]} 59. Kc4 {[%clk 0:00:03]}  Bd2 {[%clk 0:00:32]} 60. Kb3 {[%clk 0:00:04]}  Be1 {[%clk 0:00:32]} 61. Ka4 {[%clk 0:00:04]}  Bd2 {[%clk 0:00:30]} 62. b5 {[%clk 0:00:05]}  Be3 {[%clk 0:00:30]} 63. Kb4 {[%clk 0:00:03]}  Bd2+ {[%clk 0:00:30]} 64. Ka4 {[%clk 0:00:02]}  Be3 {[%clk 0:00:30]} 65. c7 {[%clk 0:00:02]}  Kb7 {[%clk 0:00:30]} 66. b6 {[%clk 0:00:03]}  Bf4 {[%clk 0:00:27]} 67. Kb5 {[%clk 0:00:02]}  Bxc7 {[%clk 0:00:27]} 68. a6+ {[%clk 0:00:02]}  Kc8 {[%clk 0:00:20]} 69. a7 {[%clk 0:00:03]} 1-0

[Event "January 2 Late 2024"]
[Site "https://www.chess.com"]
[Date "2024.01.02"]
[Round "5"]
[White "Hajiyev, Kanan"]
[Black "Flynn, Jacob"]
[Result "0-1"]
[Board "100"]
[TimeControl "180+1"]
[WhiteFideId "13404148"]
[BlackFideId "2509393"]
[WhiteElo "2624"]
[BlackElo "2466"]
[WhiteTeam "AZE"]
[BlackTeam "IRL"]
[WhiteClock "0:00:14"]
[BlackClock "0:00:14"]

1. d4 {[%clk 0:02:55]}  d5 {[%clk 0:02:56]} 2. Nf3 {[%clk 0:02:56]}  Nf6 {[%clk 0:02:56]} 3. c4 {[%clk 0:02:54]}  e6 {[%clk 0:02:57]} 4. cxd5 {[%clk 0:02:53]}  exd5 {[%clk 0:02:57]} 5. Qc2 {[%clk 0:02:53]}  c6 {[%clk 0:02:54]} 6. Nc3 {[%clk 0:02:51]}  Be7 {[%clk 0:02:54]} 7. Bf4 {[%clk 0:02:50]}  O-O {[%clk 0:02:52]} 8. e3 {[%clk 0:02:51]}  Re8 {[%clk 0:02:38]} 9. Bd3 {[%clk 0:02:50]}  Nbd7 {[%clk 0:02:36]} 10. O-O {[%clk 0:02:48]}  Nf8 {[%clk 0:02:35]} 11. h3 {[%clk 0:02:47]}  Ne6 {[%clk 0:02:33]} 12. Be5 {[%clk 0:02:46]}  g6 {[%clk 0:02:32]} 13. Rab1 {[%clk 0:02:44]}  a5 {[%clk 0:02:30]} 14. Rfc1 {[%clk 0:02:42]}  Ng7 {[%clk 0:02:30]} 15. Na4 {[%clk 0:02:24]}  Bf5 {[%clk 0:02:27]} 16. Nc5 {[%clk 0:02:23]}  Bxc5 {[%clk 0:02:06]} 17. dxc5 {[%clk 0:02:14]}  Bxd3 {[%clk 0:01:57]} 18. Qxd3 {[%clk 0:02:15]}  Nd7 {[%clk 0:01:39]} 19. Bf4 {[%clk 0:01:57]}  Qe7 {[%clk 0:01:32]} 20. Bd6 {[%clk 0:01:52]}  Qe4 {[%clk 0:01:31]} 21. Qxe4 {[%clk 0:01:41]}  Rxe4 {[%clk 0:01:29]} 22. Nd4 {[%clk 0:01:39]}  Ne6 {[%clk 0:01:20]} 23. Nxe6 {[%clk 0:01:32]}  fxe6 {[%clk 0:01:07]} 24. b3 {[%clk 0:01:33]}  Kf7 {[%clk 0:00:49]} 25. a3 {[%clk 0:01:31]}  e5 {[%clk 0:00:45]} 26. f3 {[%clk 0:01:20]}  Rxe3 {[%clk 0:00:45]} 27. Kf2 {[%clk 0:01:20]}  d4 {[%clk 0:00:40]} 28. f4 {[%clk 0:01:17]}  Ke6 {[%clk 0:00:39]} 29. Rc4 {[%clk 0:01:10]}  Kd5 {[%clk 0:00:32]} 30. fxe5 {[%clk 0:00:53]}  Nxe5 {[%clk 0:00:28]} 31. Bxe5 {[%clk 0:00:31]}  Kxe5 {[%clk 0:00:28]} 32. Rd1 {[%clk 0:00:29]}  Rf8+ {[%clk 0:00:26]} 33. Kg1 {[%clk 0:00:29]}  Rf4 {[%clk 0:00:24]} 34. b4 {[%clk 0:00:26]}  Rxa3 {[%clk 0:00:23]} 35. bxa5 {[%clk 0:00:25]}  Rxa5 {[%clk 0:00:23]} 36. Rb1 {[%clk 0:00:22]}  Rb5 {[%clk 0:00:22]} 37. Rxb5 {[%clk 0:00:21]}  cxb5 {[%clk 0:00:23]} 38. Rb4 {[%clk 0:00:22]}  d3 {[%clk 0:00:18]} 39. Rxb5 {[%clk 0:00:20]}  d2 {[%clk 0:00:16]} 40. Rb1 {[%clk 0:00:17]}  Kd4 {[%clk 0:00:16]} 41. g3 {[%clk 0:00:13]}  Rf8 {[%clk 0:00:15]} 42. Kg2 {[%clk 0:00:10]}  Kd3 {[%clk 0:00:16]} 43. Rxb7 {[%clk 0:00:10]}  d1=Q {[%clk 0:00:15]} 44. Rd7+ {[%clk 0:00:11]}  Kc2 {[%clk 0:00:16]} 45. Rxd1 {[%clk 0:00:12]}  Kxd1 {[%clk 0:00:16]} 46. c6 {[%clk 0:00:11]}  Rc8 {[%clk 0:00:16]} 47. Kf3 {[%clk 0:00:12]}  Rxc6 {[%clk 0:00:16]} 48. Kf4 {[%clk 0:00:13]}  h6 {[%clk 0:00:17]} 49. h4 {[%clk 0:00:13]}  Ke2 {[%clk 0:00:15]} 50. g4 {[%clk 0:00:14]}  Kd3 {[%clk 0:00:14]} 51. Ke5 {[%clk 0:00:14]}  Ke3 {[%clk 0:00:14]} 52. Kd5 {[%clk 0:00:14]}  Ra6 {[%clk 0:00:14]} 53. Ke5 {[%clk 0:00:15]}  Kf3 {[%clk 0:00:15]} 54. g5 {[%clk 0:00:15]}  h5 {[%clk 0:00:14]} 55. Kd5 {[%clk 0:00:14]}  Kg4 {[%clk 0:00:14]} 0-1

[Event "January 2 Late 2024"]
[Site "https://www.chess.com"]
[Date "2024.01.02"]
[Round "5"]
[White "Brown_Mamba24"]
[Black "Kazmaier, Daniel"]
[Result "1-0"]
[Board "101"]
[TimeControl "180+1"]
[BlackFideId "2606089"]
[WhiteElo "2616"]
[BlackElo "2465"]
[BlackTeam "CAN"]
[WhiteClock "0:00:11"]
[BlackClock "0:00:08"]

1. d4 {[%clk 0:03:00]}  f5 {[%clk 0:02:57]} 2. g3 {[%clk 0:03:00]}  Nf6 {[%clk 0:02:56]} 3. Bg2 {[%clk 0:03:01]}  g6 {[%clk 0:02:57]} 4. Nh3 {[%clk 0:03:01]}  Bg7 {[%clk 0:02:56]} 5. Nf4 {[%clk 0:02:58]}  O-O {[%clk 0:02:56]} 6. h4 {[%clk 0:02:58]}  d6 {[%clk 0:02:47]} 7. d5 {[%clk 0:02:41]}  Ng4 {[%clk 0:02:25]} 8. Nc3 {[%clk 0:02:04]}  c6 {[%clk 0:02:19]} 9. O-O {[%clk 0:01:41]}  e5 {[%clk 0:02:11]} 10. dxe6 {[%clk 0:01:40]}  d5 {[%clk 0:02:12]} 11. a4 {[%clk 0:01:28]}  Qd6 {[%clk 0:02:02]} 12. a5 {[%clk 0:01:25]}  Bxe6 {[%clk 0:02:01]} 13. Nxe6 {[%clk 0:01:21]}  Qxe6 {[%clk 0:02:02]} 14. Nxd5 {[%clk 0:01:21]}  Na6 {[%clk 0:01:58]} 15. Nf4 {[%clk 0:00:48]}  Qe7 {[%clk 0:01:48]} 16. c3 {[%clk 0:00:46]}  Nc5 {[%clk 0:01:35]} 17. a6 {[%clk 0:00:38]}  Nxa6 {[%clk 0:01:28]} 18. Qb3+ {[%clk 0:00:23]}  Kh8 {[%clk 0:01:07]} 19. Ne6 {[%clk 0:00:23]}  Rfe8 {[%clk 0:00:50]} 20. Nxg7 {[%clk 0:00:22]}  Qxg7 {[%clk 0:00:51]} 21. Qc4 {[%clk 0:00:17]}  Ne5 {[%clk 0:00:47]} 22. Qa2 {[%clk 0:00:15]}  Nc5 {[%clk 0:00:45]} 23. Be3 {[%clk 0:00:15]}  Ne6 {[%clk 0:00:41]} 24. Rad1 {[%clk 0:00:12]}  Ng4 {[%clk 0:00:37]} 25. Bc1 {[%clk 0:00:12]}  Nc5 {[%clk 0:00:36]} 26. b4 {[%clk 0:00:11]}  Ne4 {[%clk 0:00:35]} 27. Bb2 {[%clk 0:00:09]}  Ngf6 {[%clk 0:00:31]} 28. c4 {[%clk 0:00:08]}  Kg8 {[%clk 0:00:30]} 29. c5+ {[%clk 0:00:06]}  Qf7 {[%clk 0:00:29]} 30. Qa1 {[%clk 0:00:04]}  a6 {[%clk 0:00:29]} 31. Rd3 {[%clk 0:00:04]}  Rad8 {[%clk 0:00:28]} 32. Rfd1 {[%clk 0:00:05]}  Rxd3 {[%clk 0:00:29]} 33. exd3 {[%clk 0:00:05]}  Nxf2 {[%clk 0:00:25]} 34. Kxf2 {[%clk 0:00:06]}  Ng4+ {[%clk 0:00:25]} 35. Kg1 {[%clk 0:00:07]}  Ne3 {[%clk 0:00:24]} 36. Rd2 {[%clk 0:00:07]}  Nxg2 {[%clk 0:00:24]} 37. Rxg2 {[%clk 0:00:07]}  Qd5 {[%clk 0:00:23]} 38. Bh8 {[%clk 0:00:07]}  Re7 {[%clk 0:00:21]} 39. Bf6 {[%clk 0:00:06]}  Re6 {[%clk 0:00:20]} 40. Qd4 {[%clk 0:00:05]}  Re1+ {[%clk 0:00:13]} 41. Kh2 {[%clk 0:00:03]}  Qxd4 {[%clk 0:00:12]} 42. Bxd4 {[%clk 0:00:03]}  Rd1 {[%clk 0:00:13]} 43. Be5 {[%clk 0:00:02]}  Rxd3 {[%clk 0:00:13]} 44. Rb2 {[%clk 0:00:03]}  Re3 {[%clk 0:00:11]} 45. Bf4 {[%clk 0:00:04]}  Rd3 {[%clk 0:00:11]} 46. Kg2 {[%clk 0:00:04]}  Kf7 {[%clk 0:00:11]} 47. Kf2 {[%clk 0:00:05]}  h5 {[%clk 0:00:10]} 48. Ke2 {[%clk 0:00:05]}  Rd4 {[%clk 0:00:09]} 49. Bd2 {[%clk 0:00:05]}  Ke6 {[%clk 0:00:08]} 50. Rb3 {[%clk 0:00:06]}  Kd5 {[%clk 0:00:07]} 51. Rd3 {[%clk 0:00:06]}  Ke4 {[%clk 0:00:08]} 52. Re3+ {[%clk 0:00:06]}  Kd5 {[%clk 0:00:08]} 53. Re7 {[%clk 0:00:06]}  Re4+ {[%clk 0:00:08]} 54. Rxe4 {[%clk 0:00:06]}  Kxe4 {[%clk 0:00:08]} 55. Bf4 {[%clk 0:00:06]}  Kd4 {[%clk 0:00:09]} 56. Bd2 {[%clk 0:00:07]}  Ke4 {[%clk 0:00:08]} 57. Kf2 {[%clk 0:00:07]}  Kd3 {[%clk 0:00:09]} 58. Be1 {[%clk 0:00:07]}  Ke4 {[%clk 0:00:08]} 59. Ke2 {[%clk 0:00:06]}  Kd4 {[%clk 0:00:09]} 60. Kf3 {[%clk 0:00:06]}  Kd3 {[%clk 0:00:08]} 61. Kf4 {[%clk 0:00:07]}  Ke2 {[%clk 0:00:08]} 62. Bc3 {[%clk 0:00:07]}  Kd3 {[%clk 0:00:09]} 63. Be1 {[%clk 0:00:06]}  Ke2 {[%clk 0:00:09]} 64. Kg5 {[%clk 0:00:05]}  Kxe1 {[%clk 0:00:09]} 65. Kxg6 {[%clk 0:00:06]}  Kf2 {[%clk 0:00:10]} 66. Kxf5 {[%clk 0:00:06]}  Kxg3 {[%clk 0:00:10]} 67. Kg5 {[%clk 0:00:07]}  Kf3 {[%clk 0:00:07]} 68. Kxh5 {[%clk 0:00:07]}  Ke4 {[%clk 0:00:07]} 69. Kg6 {[%clk 0:00:07]}  Kd4 {[%clk 0:00:08]} 70. h5 {[%clk 0:00:08]}  Kc4 {[%clk 0:00:08]} 71. h6 {[%clk 0:00:09]}  Kxb4 {[%clk 0:00:09]} 72. h7 {[%clk 0:00:10]}  Kxc5 {[%clk 0:00:10]} 73. h8=Q {[%clk 0:00:10]}  b5 {[%clk 0:00:10]} 74. Qc3+ {[%clk 0:00:11]}  Kb6 {[%clk 0:00:11]} 75. Kf5 {[%clk 0:00:11]}  a5 {[%clk 0:00:11]} 76. Ke5 {[%clk 0:00:12]}  c5 {[%clk 0:00:10]} 77. Kd5 {[%clk 0:00:12]}  c4 {[%clk 0:00:11]} 78. Qd4+ {[%clk 0:00:12]}  Kb7 {[%clk 0:00:08]} 79. Kc5 {[%clk 0:00:11]} 1-0